bitfinex-derivatives/quotes_BTCF0:USTF0_20210404
["timestamp","ask_amount","ask_price","bid_price","bid_amount"]
[1617533560382,4.02558504,57674.0,57673.0,3.62575655]
[1617533560684,4.02558504,57674.0,57673.0,2.62575655]
[1617533561084,4.02558504,57674.0,57673.0,3.62575655]
[1617533561285,3.73221697,57674.0,57673.0,3.62575655]
[1617533561586,3.73221697,57674.0,57673.0,2.62575655]
[1617533561984,3.73221697,57674.0,57673.0,3.62575655]
[1617533562984,3.73221697,57674.0,57673.0,2.62575655]
[1617533563385,3.722,57674.0,57673.0,2.62575655]
[1617533563586,3.722,57674.0,57673.0,3.62575655]
[1617533564086,3.722,57674.0,57673.0,2.62575655]
[1617533564286,3.73221728,57674.0,57673.0,2.62575655]
[1617533564487,3.73221728,57674.0,57673.0,3.62575655]
[1617533567791,3.73221728,57674.0,57673.0,3.78850655]
[1617533568692,3.72715957,57674.0,57673.0,3.78850655]
[1617533569092,3.722,57674.0,57673.0,3.78850655]
[1617533569592,3.72715959,57674.0,57673.0,3.78850655]
[1617533570095,3.73221804,57674.0,57673.0,3.78850655]
[1617533571195,3.73221804,57674.0,57673.0,3.62575655]
[1617533571395,3.73221804,57674.0,57673.0,2.62575655]
[1617533571896,3.73221804,57674.0,57673.0,0.11725655]
[1617533572095,3.73221804,57674.0,57673.0,0.01]
[1617533572096,3.722,57674.0,57673.0,0.01]
[1617533572296,4.02561724,57674.0,57673.0,0.01]
[1617533572495,4.02561724,57674.0,57671.0,0.27]
[1617533572699,4.39009431,57674.0,57671.0,0.27]
[1617533572895,4.39009431,57674.0,57673.0,0.01]
[1617533573096,3.722,57674.0,57669.0,0.27]
[1617533573298,3.722,57674.0,57670.0,0.27]
[1617533573497,4.39024933,57674.0,57673.0,0.01]
[1617533573696,4.39024933,57674.0,57667.0,0.357154]
[1617533573896,0.66824933,57674.0,57670.0,0.27]
[1617533574095,0.66824933,57674.0,57669.0,0.27]
[1617533574296,3.14544816,57671.0,57667.0,3.042654]
[1617533574697,2.84169,57671.0,57670.0,0.27]
[1617533574897,2.84169,57671.0,57668.0,0.01]
[1617533575097,2.84169,57671.0,57667.0,3.042654]
[1617533575300,3.14544924,57671.0,57667.0,3.042654]
[1617533575498,0.30375885,57669.0,57668.0,0.27]
[1617533575698,0.4110154,57669.0,57668.0,0.27]
[1617533576299,0.30375885,57669.0,57668.0,3.5167]
[1617533576499,0.00516183,57669.0,57668.0,4.87370461]
[1617533577000,0.00212718,57671.0,57668.0,5.537448]
[1617533577300,0.00212718,57671.0,57670.0,0.7935268]
[1617533577703,0.0021271,57672.0,57670.0,2.17078335]
[1617533578102,0.0021271,57672.0,57671.0,0.85438138]
[1617533578503,0.0021271,57672.0,57671.0,2.12438138]
[1617533578705,0.0021271,57672.0,57671.0,2.21587592]
[1617533579104,0.00516586,57673.0,57672.0,3.5358]
[1617533579105,0.00212705,57673.0,57672.0,3.5358]
[1617533579303,0.00212705,57673.0,57672.0,3.7358]
[1617533579504,0.00212703,57674.0,57672.0,5.0058]
[1617533579905,0.00516566,57675.0,57673.0,1.0]
[1617533580105,0.00516566,57675.0,57673.0,1.2]
[1617533580305,0.00516566,57675.0,57674.0,1.27]
[1617533580508,0.00212701,57675.0,57674.0,2.12423088]
[1617533581107,0.00212699,57676.0,57674.0,2.12423088]
[1617533581608,0.01022991,57676.0,57675.0,1.0]
[1617533582010,0.01022991,57676.0,57675.0,1.68806306]
[1617533582409,0.30396011,57677.0,57675.0,1.68806306]
[1617533582811,0.30396011,57677.0,57676.0,1.0]
[1617533583011,0.3647355,57679.0,57676.0,1.41809105]
[1617533583210,0.3647355,57679.0,57676.0,1.68809105]
[1617533583410,0.44576108,57684.0,57678.0,1.35705562]
[1617533583411,0.36473232,57680.0,57678.0,1.35705562]
[1617533583612,0.36473232,57680.0,57679.0,0.10725655]
[1617533583810,0.36473232,57680.0,57679.0,0.43825224]
[1617533584111,0.36473232,57680.0,57679.0,1.43825224]
[1617533584314,0.66869522,57680.0,57679.0,1.43825224]
[1617533585617,0.3039629,57680.0,57679.0,1.79526218]
[1617533588120,0.44576183,57686.0,57679.0,1.79526218]
[1617533588318,0.30396068,57680.0,57679.0,1.79526218]
[1617533588522,0.30396068,57680.0,57679.0,0.79526218]
[1617533588819,0.30396068,57680.0,57679.0,1.79526218]
[1617533589219,0.66896054,57680.0,57679.0,1.79526218]
[1617533589718,0.36499986,57680.0,57679.0,1.79526218]
[1617533589919,0.91316314,57680.0,57679.0,1.79526218]
[1617533590319,0.66918281,57680.0,57679.0,1.79526218]
[1617533591820,0.30418295,57680.0,57679.0,1.79526218]
[1617533593423,0.30418295,57680.0,57679.0,2.23234414]
[1617533594524,0.30413959,57681.0,57679.0,2.23234414]
[1617533594726,0.30413959,57681.0,57679.0,1.23234414]
[1617533594925,0.30413959,57681.0,57680.0,2.6347]
[1617533595127,0.00516863,57681.0,57680.0,4.63163428]
[1617533595326,0.00516863,57681.0,57680.0,4.90163428]
[1617533595527,0.00516863,57682.0,57680.0,4.99312185]
[1617533595929,0.00516863,57682.0,57681.0,1.94651749]
[1617533596328,0.01023556,57682.0,57681.0,2.21651749]
[1617533596528,0.01023556,57682.0,57681.0,2.41651749]
[1617533596729,0.00516845,57682.0,57681.0,2.41651749]
[1617533597130,0.01023554,57682.0,57681.0,2.41651749]
[1617533597531,0.00516845,57682.0,57681.0,2.41651749]
[1617533597932,0.00516845,57682.0,57681.0,1.56148472]
[1617533598534,0.00212808,57683.0,57681.0,2.35540927]
[1617533598933,0.00212806,57684.0,57683.0,0.2]
[1617533599333,0.00212806,57684.0,57683.0,2.32463445]
[1617533599734,0.0051731,57685.0,57683.0,2.82107416]
[1617533600134,0.01024476,57686.0,57685.0,1.0]
[1617533600333,0.01024476,57686.0,57685.0,1.2]
[1617533600533,0.01024476,57686.0,57685.0,0.47]
[1617533600733,0.01024476,57686.0,57685.0,1.47]
[1617533600933,0.01024476,57686.0,57685.0,2.32510855]
[1617533601834,0.00212589,57687.0,57685.0,2.32510855]
[1617533602033,0.00212589,57687.0,57686.0,0.10725655]
[1617533602235,0.00212589,57687.0,57686.0,1.72496517]
[1617533602433,0.00212589,57687.0,57686.0,1.99496517]
[1617533604335,0.00212587,57688.0,57686.0,2.43097717]
[1617533604735,0.00212587,57688.0,57687.0,1.0]
[1617533605234,0.00212587,57688.0,57687.0,1.6877223]
[1617533606037,0.00212576,57690.0,57687.0,2.12358883]
[1617533606438,0.00212576,57690.0,57688.0,1.0]
[1617533606638,0.00212576,57690.0,57689.0,0.35661982]
[1617533606838,0.00212576,57690.0,57689.0,1.62661982]
[1617533607038,0.00516256,57691.0,57689.0,1.6876004]
[1617533607440,0.0102239,57692.0,57690.0,1.0]
[1617533607840,0.0102239,57692.0,57691.0,1.68767444]
[1617533608350,0.0102239,57692.0,57691.0,1.41767444]
[1617533608540,0.0102239,57692.0,57691.0,1.68767444]
[1617533610746,0.0102239,57692.0,57691.0,1.33098073]
[1617533611145,0.0051593,57692.0,57691.0,1.68742658]
[1617533611847,0.0051593,57692.0,57691.0,5.01362658]
[1617533612146,0.00212441,57692.0,57691.0,5.01362658]
[1617533612546,0.00212441,57692.0,57691.0,1.68742658]
[1617533612748,0.00212441,57692.0,57691.0,1.33098073]
[1617533612947,0.00212441,57692.0,57691.0,1.27]
[1617533614048,0.10938096,57692.0,57691.0,1.27]
[1617533614549,0.10725655,57692.0,57691.0,1.27]
[1617533615048,0.11241259,57692.0,57691.0,1.27]
[1617533616049,0.10725655,57692.0,57691.0,1.27]
[1617533616548,0.11746762,57692.0,57691.0,1.27]
[1617533616948,0.41066179,57692.0,57691.0,1.27]
[1617533617348,0.41066179,57692.0,57691.0,0.27]
[1617533617548,0.41066179,57692.0,57691.0,1.27]
[1617533617748,0.41066179,57692.0,57690.0,1.0]
[1617533618149,0.41066179,57692.0,57691.0,0.27]
[1617533618351,0.10725655,57692.0,57690.0,1.0]
[1617533618752,0.10725655,57692.0,57691.0,0.27]
[1617533619152,0.4106724,57692.0,57691.0,0.27]
[1617533619351,0.4106724,57692.0,57690.0,0.01]
[1617533619551,0.4106724,57692.0,57691.0,1.0]
[1617533619754,0.4106724,57692.0,57691.0,1.27]
[1617533619953,0.4106724,57692.0,57691.0,1.0]
[1617533620353,0.4106724,57692.0,57691.0,1.27]
[1617533621955,0.4104724,57692.0,57691.0,1.27]
[1617533624357,0.4104724,57692.0,57691.0,0.27]
[1617533624757,0.4104724,57692.0,57688.0,3.89062155]
[1617533624758,0.4104724,57692.0,57689.0,0.27]
[1617533624959,0.5690324,57692.0,57691.0,0.27]
[1617533625358,0.62983778,57692.0,57691.0,1.0]
[1617533625758,0.56915087,57692.0,57691.0,0.27]
[1617533626158,0.56915087,57692.0,57689.0,0.27]
[1617533626361,0.93335463,57692.0,57691.0,0.27]
[1617533626760,0.93335463,57692.0,57689.0,0.27]
[1617533626960,0.30352097,57690.0,57688.0,3.5322]
[1617533627359,0.30352097,57690.0,57689.0,0.27]
[1617533627762,0.30352097,57690.0,57689.0,1.27]
[1617533628861,0.30352097,57690.0,57689.0,0.27]
[1617533629070,0.30352097,57690.0,57689.0,1.27]
[1617533629862,0.30352097,57690.0,57689.0,0.27]
[1617533631663,0.30352097,57690.0,57689.0,1.27]
[1617533632566,0.30352097,57690.0,57689.0,0.27]
[1617533632766,0.66831639,57690.0,57689.0,0.62872689]
[1617533633166,0.80182639,57690.0,57689.0,1.62872689]
[1617533633365,0.49830542,57690.0,57689.0,1.62872689]
[1617533633566,1.04624936,57690.0,57689.0,1.62872689]
[1617533633966,0.80231835,57690.0,57689.0,1.62872689]
[1617533634367,1.04625023,57690.0,57689.0,1.62872689]
[1617533634967,1.04625023,57690.0,57689.0,4.62102689]
[1617533635869,1.04625023,57690.0,57689.0,3.62102689]
[1617533636068,1.04625023,57690.0,57689.0,4.62102689]
[1617533640177,0.7422373,57690.0,57689.0,4.62102689]
[1617533640776,1.04637868,57690.0,57689.0,4.62102689]
[1617533641577,1.04637868,57690.0,57689.0,3.62102689]
[1617533641777,1.04637868,57690.0,57689.0,0.62872689]
[1617533642378,1.04637868,57690.0,57689.0,0.27]
[1617533642577,3.63727868,57690.0,57689.0,0.27]
[1617533642780,3.63727868,57690.0,57688.0,0.35893652]
[1617533642781,4.0833284,57690.0,57687.0,0.62906745]
[1617533643178,4.44923769,57690.0,57689.0,0.27]
[1617533643377,4.44923769,57690.0,57688.0,0.27]
[1617533643777,4.44923769,57690.0,57689.0,0.27]
[1617533643979,4.44923769,57690.0,57686.0,0.46635981]
[1617533644178,4.44923769,57690.0,57688.0,0.01]
[1617533644579,0.66912862,57687.0,57686.0,0.46635981]
[1617533644978,0.66912862,57687.0,57686.0,0.47635981]
[1617533645779,0.66912862,57687.0,57686.0,0.36910326]
[1617533645981,2.16912862,57687.0,57686.0,0.36910326]
[1617533646581,2.16912862,57687.0,57686.0,0.01]
[1617533646582,2.85925766,57687.0,57686.0,0.01]
[1617533646781,1.35925766,57687.0,57686.0,0.01]
[1617533646982,1.86625284,57687.0,57682.0,0.27]
[1617533647382,1.62228814,57687.0,57686.0,0.01]
[1617533647582,1.62228814,57687.0,57683.0,0.27]
[1617533647782,1.86625163,57687.0,57683.0,0.27]
[1617533647984,1.86625163,57687.0,57680.0,0.36945344]
[1617533648182,0.10725655,57681.0,57680.0,0.35945344]
[1617533648585,0.10725655,57681.0,57680.0,0.36945344]
[1617533648784,1.02052287,57681.0,57680.0,0.36945344]
[1617533649185,1.46669099,57681.0,57680.0,0.07099169]
[1617533649585,1.46669099,57681.0,57680.0,0.01]
[1617533649985,1.02052287,57681.0,57680.0,0.35944314]
[1617533650385,1.02052287,57681.0,57680.0,0.36944314]
[1617533650587,1.02052287,57681.0,57680.0,0.35944314]
[1617533650588,0.5538129,57681.0,57680.0,0.35944314]
[1617533650986,1.22369458,57681.0,57680.0,0.62944314]
[1617533651787,1.22369458,57681.0,57680.0,0.69043603]
[1617533651788,1.46766615,57681.0,57680.0,0.69043603]
[1617533652188,1.46766615,57681.0,57680.0,0.33099289]
[1617533652189,1.22369458,57681.0,57680.0,0.33099289]
[1617533652505,1.46766943,57681.0,57680.0,0.27]
[1617533652888,1.46766943,57681.0,57679.0,0.62988138]
[1617533653287,1.46766943,57681.0,57680.0,0.27]
[1617533653489,1.46766943,57681.0,57679.0,0.35988138]
[1617533653689,1.29941841,57680.0,57676.0,0.43958015]
[1617533654090,1.29941841,57680.0,57677.0,0.27]
[1617533654490,0.52010163,57678.0,57677.0,0.27]
[1617533654890,0.82422072,57678.0,57677.0,0.35925738]
[1617533655693,0.82422072,57678.0,57677.0,0.62925738]
[1617533664810,0.93147727,57678.0,57677.0,0.62925738]
[1617533665609,0.56655564,57678.0,57677.0,0.62925738]
[1617533668513,0.56655564,57678.0,57677.0,0.27]
[1617533668711,0.56655564,57678.0,57677.0,0.62898342]
[1617533668911,0.56655564,57678.0,57677.0,0.35898342]
[1617533669311,0.56655564,57678.0,57677.0,0.62898342]
[1617533669512,0.26243655,57678.0,57677.0,0.27]
[1617533669712,0.93109299,57678.0,57677.0,0.62906011]
[1617533669911,0.93109299,57678.0,57677.0,0.35906011]
[1617533670311,0.93109299,57678.0,57677.0,0.62906011]
[1617533670511,1.17505867,57678.0,57677.0,0.62906011]
[1617533670914,1.17505867,57678.0,57677.0,0.69005157]
[1617533673519,1.17505867,57678.0,57677.0,0.33099146]
[1617533673918,1.17505867,57678.0,57677.0,0.69034769]
[1617533675824,1.17505867,57678.0,57677.0,0.33099146]
[1617533676022,5.43225867,57678.0,57677.0,0.33099146]
[1617533676225,5.43225867,57678.0,57677.0,0.27]
[1617533676622,5.43225867,57678.0,57676.0,0.01]
[1617533677023,5.43225867,57678.0,57677.0,0.26]
[1617533677223,5.43225867,57678.0,57676.0,0.27]
[1617533677623,5.43225867,57678.0,57677.0,0.27]
[1617533677823,5.43225867,57678.0,57675.0,0.27]
[1617533678023,5.87812131,57678.0,57675.0,0.27]
[1617533678223,5.87812131,57678.0,57673.0,0.35949012]
[1617533678424,1.5,57675.0,57674.0,0.01]
[1617533678624,1.5,57675.0,57672.0,0.35955744]
[1617533678827,0.66883694,57675.0,57672.0,0.35955744]
[1617533679025,0.66883694,57675.0,57673.0,0.27]
[1617533679426,0.24398162,57677.0,57674.0,0.35940338]
[1617533679625,0.24398162,57677.0,57674.0,4.06250338]
[1617533679826,0.36479421,57675.0,57674.0,4.12349617]
[1617533680228,0.30401178,57675.0,57674.0,4.12349617]
[1617533680426,0.30401178,57675.0,57674.0,4.39349617]
[1617533681027,0.66881037,57675.0,57674.0,4.39349617]
[1617533683029,0.66881037,57675.0,57674.0,0.69039617]
[1617533683230,3.31231037,57675.0,57674.0,0.69039617]
[1617533683429,4.81231037,57675.0,57674.0,0.69039617]
[1617533683630,4.81231037,57675.0,57674.0,0.33099279]
[1617533684032,5.05629174,57675.0,57674.0,0.27]
[1617533684531,5.5023141,57675.0,57673.0,0.01]
[1617533684730,5.5023141,57675.0,57672.0,0.35961132]
[1617533684930,1.35909855,57674.0,57671.0,0.35968136]
[1617533685131,2.85909855,57674.0,57673.0,0.27]
[1617533685330,2.85909855,57674.0,57671.0,0.35968136]
[1617533685531,1.5,57672.0,57671.0,0.35968136]
[1617533685731,1.7,57672.0,57671.0,0.35968136]
[1617533685931,3.05927043,57672.0,57671.0,0.27]
[1617533686431,3.05927043,57672.0,57665.0,0.36011634]
[1617533686432,3.42529466,57672.0,57667.0,0.27]
[1617533686634,3.42529466,57672.0,57666.0,0.27]
[1617533686832,3.05927043,57672.0,57666.0,0.27]
[1617533687033,0.10725655,57667.0,57665.0,0.36011634]
[1617533687433,0.5477799,57666.0,57663.0,0.35962996]
[1617533687633,0.6981699,57666.0,57663.0,0.35962996]
[1617533687835,0.30376396,57664.0,57663.0,0.35962996]
[1617533688234,0.30376396,57664.0,57658.0,0.44954772]
[1617533688235,0.30376396,57664.0,57662.0,0.35964533]
[1617533688434,0.30376396,57664.0,57663.0,0.27]
[1617533688635,0.51488502,57666.0,57662.0,0.62964533]
[1617533689036,0.30376243,57664.0,57663.0,0.33100376]
[1617533689838,3.29766243,57664.0,57663.0,0.33100376]
[1617533690238,3.29766243,57664.0,57663.0,0.27]
[1617533690539,3.49766243,57664.0,57663.0,0.27]
[1617533690740,3.86218973,57664.0,57662.0,0.01]
[1617533690939,3.66218973,57664.0,57663.0,0.27]
[1617533691139,3.3584273,57664.0,57660.0,0.35983576]
[1617533691339,3.3584273,57664.0,57661.0,0.27]
[1617533691539,3.66221515,57664.0,57660.0,0.35983576]
[1617533691942,0.3037883,57662.0,57661.0,0.27]
[1617533692139,0.5037883,57662.0,57661.0,0.27]
[1617533692340,0.2,57662.0,57661.0,0.27]
[1617533692943,0.2,57662.0,57661.0,0.69084875]
[1617533692944,0.30378832,57662.0,57661.0,0.69084875]
[1617533693341,0.30378832,57662.0,57661.0,0.42084875]
[1617533693642,0.30378832,57662.0,57661.0,0.69084875]
[1617533693844,0.30378832,57662.0,57661.0,0.62983979]
[1617533694243,0.30378832,57662.0,57661.0,0.69084773]
[1617533694448,0.24403175,57665.0,57661.0,0.69084773]
[1617533694642,0.36472377,57664.0,57662.0,0.42104467]
[1617533695043,0.36472377,57664.0,57663.0,0.27]
[1617533695442,0.66867656,57664.0,57663.0,0.33100739]
[1617533696343,0.91270519,57664.0,57663.0,0.33100739]
[1617533698254,0.91270519,57664.0,57663.0,0.27]
[1617533698255,0.30395279,57664.0,57663.0,0.27]
[1617533698650,0.30395279,57664.0,57662.0,0.01]
[1617533699246,0.30376425,57663.0,57662.0,0.01]
[1617533699746,0.30376425,57663.0,57661.0,0.62985373]
[1617533699946,1.86449617,57665.0,57662.0,0.01]
[1617533701648,0.36449462,57664.0,57662.0,0.01]
[1617533701847,0.56449462,57664.0,57662.0,0.01]
[1617533702049,0.56449462,57664.0,57661.0,0.27]
[1617533702247,0.36449462,57664.0,57661.0,0.27]
[1617533702447,0.36449462,57664.0,57660.0,0.35988691]
[1617533702448,0.36449462,57664.0,57663.0,0.01]
[1617533702649,0.36449462,57664.0,57661.0,0.27]
[1617533702849,0.01022312,57664.0,57663.0,0.35951108]
[1617533703048,0.01022312,57664.0,57663.0,0.62951108]
[1617533703250,0.01022312,57664.0,57663.0,0.35951108]
[1617533703649,0.01022312,57664.0,57663.0,0.62951108]
[1617533704450,0.47174243,57667.0,57663.0,0.62951108]
[1617533705049,0.47174243,57667.0,57666.0,3.736]
[1617533705250,0.10725655,57667.0,57666.0,3.736]
[1617533705450,0.10725655,57667.0,57666.0,4.006]
[1617533705651,0.47198748,57667.0,57666.0,4.006]
[1617533705850,0.47198748,57667.0,57666.0,0.27]
[1617533706251,0.67198748,57667.0,57665.0,0.27]
[1617533706652,0.67198748,57667.0,57666.0,0.27]
[1617533706851,0.67198748,57667.0,57665.0,0.27]
[1617533707253,0.67198748,57667.0,57666.0,0.27]
[1617533707452,0.67198748,57667.0,57664.0,0.3596179]
[1617533707453,0.30725655,57667.0,57665.0,0.27]
[1617533707852,0.30725655,57667.0,57666.0,0.27]
[1617533708053,0.30725655,57667.0,57663.0,0.35963163]
[1617533708254,0.81645676,57667.0,57665.0,0.27]
[1617533708452,0.81645676,57667.0,57664.0,0.36959014]
[1617533708653,0.36473275,57666.0,57664.0,0.01]
[1617533708853,0.56473275,57666.0,57665.0,0.27]
[1617533709052,0.56473275,57666.0,57664.0,0.27]
[1617533709453,0.2,57666.0,57665.0,0.27]
[1617533709654,0.2,57666.0,57664.0,0.27]
[1617533710054,0.2,57666.0,57665.0,0.27]
[1617533710253,0.2,57666.0,57663.0,0.35963677]
[1617533710254,0.2,57666.0,57664.0,0.27]
[1617533710655,0.2,57666.0,57665.0,0.27]
[1617533710856,0.2,57666.0,57664.0,0.27]
[1617533711155,0.2,57666.0,57665.0,0.27]
[1617533711355,0.56475718,57666.0,57665.0,0.27]
[1617533711556,0.56475718,57666.0,57664.0,0.27]
[1617533711756,0.56475718,57666.0,57665.0,0.27]
[1617533712156,0.56475718,57666.0,57664.0,0.27]
[1617533712359,0.36475725,57665.0,57664.0,0.27]
[1617533712558,0.36475725,57665.0,57663.0,0.35963677]
[1617533712759,0.36475725,57665.0,57664.0,0.27]
[1617533712959,0.2,57666.0,57664.0,0.27]
[1617533713360,0.36475598,57665.0,57663.0,0.35958187]
[1617533713958,0.36475598,57665.0,57664.0,0.27]
[1617533714159,0.2,57666.0,57664.0,0.27]
[1617533714559,0.36481715,57665.0,57663.0,0.35968782]
[1617533714960,0.36481768,57664.0,57663.0,0.62968782]
[1617533715159,0.36481768,57664.0,57663.0,0.35968782]
[1617533715561,0.36481768,57664.0,57663.0,0.27]
[1617533715760,0.44402259,57666.0,57663.0,0.27]
[1617533715961,0.44402259,57666.0,57662.0,0.36970686]
[1617533716161,0.44402259,57666.0,57662.0,0.35970686]
[1617533716361,0.24402301,57665.0,57663.0,0.33100575]
[1617533716761,0.24402301,57665.0,57663.0,0.62966236]
[1617533717164,0.3648167,57664.0,57663.0,0.27]
[1617533717663,0.3648167,57664.0,57662.0,0.35968962]
[1617533717863,0.3648167,57664.0,57663.0,0.27]
[1617533718063,0.10725655,57667.0,57663.0,0.27]
[1617533718364,0.3648186,57664.0,57663.0,0.27]
[1617533722468,0.44593877,57666.0,57663.0,0.27]
[1617533722967,0.36487834,57664.0,57662.0,0.01]
[1617533723368,0.36487818,57663.0,57661.0,0.3595745]
[1617533723768,0.44593877,57666.0,57662.0,0.27]
[1617533724170,0.36488304,57663.0,57662.0,0.27]
[1617533724573,0.36488249,57663.0,57662.0,0.27]
[1617533724971,0.36488249,57663.0,57661.0,0.01]
[1617533725170,0.36488249,57663.0,57661.0,0.36959694]
[1617533725372,0.36488249,57663.0,57662.0,0.27]
[1617533725573,0.44625616,57664.0,57661.0,0.35959694]
[1617533725971,0.36513778,57663.0,57662.0,0.27]
[1617533726373,0.44625616,57664.0,57662.0,0.27]
[1617533726772,0.36513792,57663.0,57662.0,0.27]
[1617533727874,0.36513792,57663.0,57662.0,0.62912237]
[1617533728272,0.36513792,57663.0,57662.0,0.35912237]
[1617533728472,0.36513792,57663.0,57662.0,0.62912237]
[1617533728673,0.36513792,57663.0,57662.0,0.27]
[1617533729074,0.36513792,57663.0,57661.0,0.35849818]
[1617533729272,0.44625616,57664.0,57662.0,0.27]
[1617533729472,0.25648655,57667.0,57662.0,0.27]
[1617533729473,0.36513609,57663.0,57662.0,0.62821755]
[1617533729975,0.36513609,57663.0,57662.0,0.35821755]
[1617533730173,0.36513609,57663.0,57662.0,0.62821755]
[1617533730375,0.66943131,57663.0,57662.0,0.62821755]
[1617533730774,0.30429522,57663.0,57662.0,0.62821755]
[1617533731175,0.66943174,57663.0,57662.0,0.27]
[1617533731575,0.66943174,57663.0,57661.0,0.35800936]
[1617533731775,0.30429522,57663.0,57661.0,0.35800936]
[1617533731975,0.30429522,57663.0,57662.0,0.27]
[1617533732176,0.44625544,57664.0,57662.0,0.27]
[1617533732779,0.6695139,57663.0,57662.0,0.27]
[1617533733175,0.91355095,57663.0,57662.0,0.27]
[1617533733677,1.11583665,57663.0,57662.0,0.27]
[1617533734077,7.1479755,57663.0,57662.0,0.27]
[1617533734280,7.3996755,57663.0,57660.0,0.35570237]
[1617533734480,7.3996755,57663.0,57651.0,0.43772796]
[1617533734481,7.76577387,57663.0,57651.0,0.43772796]
[1617533734680,1.0,57661.0,57651.0,0.43772796]
[1617533734878,1.5,57656.0,57651.0,0.43772796]
[1617533735078,3.58373062,57652.0,57644.0,0.43822579]
[1617533735479,0.10725655,57645.0,57644.0,0.43822579]
[1617533735679,2.60725655,57645.0,57643.0,0.27]
[1617533735879,2.60725655,57645.0,57635.0,0.43898399]
[1617533736081,2.6524,57636.0,57632.0,0.43922104]
[1617533736280,1.5,57635.0,57632.0,0.43922104]
[1617533736882,1.5,57635.0,57627.0,0.50044195]
[1617533736883,1.26097479,57633.0,57627.0,0.44084624]
[1617533737081,1.5,57632.0,57627.0,0.44084624]
[1617533737281,1.26097479,57633.0,57628.0,0.27]
[1617533737482,0.24416354,57634.0,57628.0,0.71080572]
[1617533737483,0.10725655,57629.0,57628.0,0.71080572]
[1617533737881,0.10725655,57629.0,57622.0,0.27]
[1617533738282,0.10725655,57629.0,57619.0,0.27]
[1617533738483,0.8270421,57623.0,57619.0,0.77116408]
[1617533738695,0.8270421,57623.0,57619.0,0.50116408]
[1617533738909,0.58297193,57623.0,57622.0,0.44107193]
[1617533739284,2.08297193,57623.0,57622.0,0.44107193]
[1617533739485,2.19022848,57623.0,57622.0,0.44107193]
[1617533739685,2.19022848,57623.0,57622.0,0.27]
[1617533739686,2.69872748,57623.0,57622.0,0.27]
[1617533739885,5.33682748,57623.0,57622.0,0.27]
[1617533740085,5.70311442,57623.0,57619.0,0.01]
[1617533740487,4.88937555,57623.0,57622.0,0.27]
[1617533740689,4.88937555,57623.0,57619.0,0.71141009]
[1617533740888,2.00850205,57621.0,57620.0,0.01]
[1617533741288,2.00850205,57621.0,57611.0,0.99369709]
[1617533741289,2.45600782,57621.0,57615.0,0.44172008]
[1617533741491,0.10725655,57616.0,57615.0,0.44172008]
[1617533741888,0.55478022,57616.0,57615.0,0.71172008]
[1617533742288,0.55478022,57616.0,57615.0,0.27]
[1617533742693,0.55478022,57616.0,57614.0,0.44187813]
[1617533742889,1.06334388,57616.0,57612.0,0.71222938]
[1617533743088,1.06334388,57616.0,57615.0,0.27]
[1617533743291,0.10725655,57616.0,57612.0,0.27]
[1617533743490,0.10725655,57616.0,57613.0,0.01]
[1617533743691,0.10725655,57616.0,57615.0,0.27]
[1617533743890,0.10725655,57616.0,57612.0,0.27]
[1617533744102,0.10725655,57616.0,57614.0,0.01]
[1617533744293,0.10725655,57616.0,57615.0,0.27]
[1617533744491,0.10725655,57616.0,57613.0,0.27]
[1617533744899,0.10725655,57616.0,57615.0,0.27]
[1617533745098,0.10725655,57616.0,57614.0,0.27]
[1617533745498,0.10725655,57616.0,57598.0,0.01]
[1617533745696,0.10725655,57616.0,57615.0,0.27]
[1617533746112,0.10725655,57616.0,57599.0,0.01]
[1617533746318,0.10725655,57616.0,57600.0,1.0]
[1617533746503,0.10725655,57616.0,57601.0,1.0]
[1617533746693,0.10725655,57616.0,57601.0,1.01]
[1617533747293,0.10725655,57616.0,57601.0,0.01]
[1617533747493,0.10725655,57602.0,57601.0,0.01]
[1617533747693,0.10725655,57602.0,57597.0,0.27]
[1617533748094,0.10725655,57602.0,57601.0,0.27]
[1617533748295,0.10725655,57602.0,57597.0,0.27]
[1617533748695,0.10725655,57602.0,57601.0,0.27]
[1617533748895,0.10725655,57602.0,57601.0,1.0]
[1617533749295,0.10725655,57602.0,57601.0,1.27]
[1617533749496,0.10725655,57602.0,57601.0,0.27]
[1617533749896,0.10725655,57602.0,57597.0,1.27]
[1617533750295,0.10725655,57602.0,57596.0,0.10725655]
[1617533750296,0.10725655,57602.0,57601.0,0.27]
[1617533750496,0.10725655,57602.0,57598.0,0.27]
[1617533750696,3.76915655,57602.0,57598.0,0.27]
[1617533750897,3.76915655,57602.0,57597.0,0.01]
[1617533751098,3.76915655,57602.0,57599.0,0.27]
[1617533751298,3.76915655,57602.0,57599.0,1.27]
[1617533751497,0.10725655,57602.0,57599.0,1.0]
[1617533751698,0.10725655,57602.0,57599.0,4.1737]
[1617533751899,0.10725655,57602.0,57600.0,0.27]
[1617533754214,0.10725655,57602.0,57601.0,1.0]
[1617533754611,0.10725655,57602.0,57601.0,1.27]
[1617533754807,0.10725655,57602.0,57601.0,0.27]
[1617533755209,0.10725655,57602.0,57600.0,1.27]
[1617533755407,0.10725655,57602.0,57600.0,0.27]
[1617533755608,0.10725655,57602.0,57601.0,0.27]
[1617533755809,0.10725655,57602.0,57601.0,1.0]
[1617533756008,0.10725655,57602.0,57601.0,1.12695]
[1617533756207,0.10725655,57602.0,57601.0,1.39695]
[1617533756410,0.10725655,57602.0,57601.0,1.12695]
[1617533756807,0.10725655,57602.0,57601.0,1.39695]
[1617533762412,0.10725655,57602.0,57601.0,0.27]
[1617533762812,0.10725655,57602.0,57601.0,1.0]
[1617533763212,0.10725655,57602.0,57601.0,1.27]
[1617533763413,0.10725655,57602.0,57601.0,1.12311]
[1617533763913,0.10725655,57602.0,57601.0,1.39311]
[1617533764114,0.10725655,57602.0,57601.0,0.39311]
[1617533764513,0.10725655,57602.0,57601.0,1.39311]
[1617533765115,0.10725655,57602.0,57601.0,0.39311]
[1617533765314,0.10725655,57602.0,57601.0,1.39311]
[1617533766414,0.00210637,57627.0,57601.0,1.39311]
[1617533766617,0.00210623,57629.0,57601.0,4.62651]
[1617533766817,0.00210623,57629.0,57618.0,1.0]
[1617533767015,0.00210623,57629.0,57618.0,1.11776]